[Event "Titled Tuesday Blitz November 01 Late 2022"]
[White "Prydun, Andriy"]
[Black "Hughes, Tyler B"]
[WhiteFideId "14145898"]
[BlackFideId "2026775"]
[WhiteElo "2163"]
[BlackElo "2284"]
[Result "0-1"]
[Round "11"]
[TimeControl "180+1"]
[Date "2022.11.02"]
[WhiteClock "0:00:02"]
[BlackClock "0:01:14"]

1. e4 {[%clk 0:02:00]}  c6 {[%clk 0:02:59]} 2. Nf3 {[%clk 0:01:26]}  d5 {[%clk 0:02:58]} 3. exd5 {[%clk 0:01:25]}  cxd5 {[%clk 0:02:58]} 4. b3 {[%clk 0:01:24]}  Nc6 {[%clk 0:02:55]} 5. Bb5 {[%clk 0:01:24]}  Nf6 {[%clk 0:02:53]} 6. Ne5 {[%clk 0:01:21]}  Qc7 {[%clk 0:02:51]} 7. Bb2 {[%clk 0:01:19]}  e6 {[%clk 0:02:48]} 8. O-O {[%clk 0:01:15]}  Bd6 {[%clk 0:02:49]} 9. f4 {[%clk 0:01:14]}  Qb6+ {[%clk 0:02:48]} 10. d4 {[%clk 0:01:12]}  Qxb5 {[%clk 0:02:48]} 11. Nc3 {[%clk 0:01:10]}  Qb6 {[%clk 0:02:46]} 12. Ne2 {[%clk 0:01:10]}  Nxe5 {[%clk 0:02:43]} 13. fxe5 {[%clk 0:01:09]}  Bxe5 {[%clk 0:02:44]} 14. Kh1 {[%clk 0:01:01]}  Bd6 {[%clk 0:02:42]} 15. Qd2 {[%clk 0:00:54]}  Ne4 {[%clk 0:02:41]} 16. Qe3 {[%clk 0:00:53]}  Bd7 {[%clk 0:02:36]} 17. Rab1 {[%clk 0:00:48]}  Nf6 {[%clk 0:02:25]} 18. c4 {[%clk 0:00:46]}  Be7 {[%clk 0:02:09]} 19. c5 {[%clk 0:00:42]}  Qc7 {[%clk 0:02:08]} 20. Ng3 {[%clk 0:00:40]}  h5 {[%clk 0:02:07]} 21. Rbe1 {[%clk 0:00:37]}  Ng4 {[%clk 0:02:03]} 22. Qf3 {[%clk 0:00:33]}  f5 {[%clk 0:02:00]} 23. c6 {[%clk 0:00:13]}  bxc6 {[%clk 0:01:58]} 24. b4 {[%clk 0:00:01]}  h4 {[%clk 0:01:58]} 25. b5 {[%clk 0:00:01]}  hxg3 {[%clk 0:01:57]} 26. bxc6 {[%clk 0:00:01]}  Rxh2+ {[%clk 0:01:55]} 27. Kg1 {[%clk 0:00:02]}  Qxc6 {[%clk 0:01:35]} 28. Ba3 {[%clk 0:00:03]}  Bxa3 {[%clk 0:01:33]} 29. Qxa3 {[%clk 0:00:02]}  Qc7 {[%clk 0:01:29]} 30. Qc5 {[%clk 0:00:01]}  Qxc5 {[%clk 0:01:28]} 31. dxc5 {[%clk 0:00:02]}  O-O-O {[%clk 0:01:14]} 0-1


[Site "https://www.chess.com"]

[Event "Titled Tuesday Blitz November 01 Late 2022"]
[White "Ramirez, Alejandro"]
[Black "Predke, Alexandr"]
[WhiteFideId "6500617"]
[BlackFideId "24107581"]
[WhiteElo "2694"]
[BlackElo "2614"]
[Result "1-0"]
[Round "11"]
[TimeControl "180+1"]
[Date "2022.11.01"]
[WhiteClock "0:00:11"]
[BlackClock "0:00:01"]

1. Nf3 {[%clk 0:03:00]}  Nf6 {[%clk 0:02:56]} 2. c4 {[%clk 0:02:35]}  e6 {[%clk 0:02:54]} 3. g3 {[%clk 0:02:36]}  d5 {[%clk 0:02:55]} 4. b3 {[%clk 0:02:36]}  Be7 {[%clk 0:02:55]} 5. Bg2 {[%clk 0:02:37]}  O-O {[%clk 0:02:56]} 6. O-O {[%clk 0:02:37]}  d4 {[%clk 0:02:56]} 7. e3 {[%clk 0:02:37]}  c5 {[%clk 0:02:57]} 8. exd4 {[%clk 0:02:38]}  cxd4 {[%clk 0:02:58]} 9. Re1 {[%clk 0:02:38]}  Nc6 {[%clk 0:02:58]} 10. d3 {[%clk 0:02:39]}  Nd7 {[%clk 0:02:57]} 11. Na3 {[%clk 0:02:40]}  e5 {[%clk 0:02:51]} 12. Nc2 {[%clk 0:02:40]}  a5 {[%clk 0:02:50]} 13. a3 {[%clk 0:02:41]}  Qc7 {[%clk 0:02:27]} 14. Rb1 {[%clk 0:02:33]}  Nc5 {[%clk 0:02:22]} 15. b4 {[%clk 0:02:30]}  axb4 {[%clk 0:01:43]} 16. axb4 {[%clk 0:02:31]}  Na4 {[%clk 0:01:43]} 17. Bd2 {[%clk 0:02:31]}  Bf6 {[%clk 0:01:33]} 18. b5 {[%clk 0:02:22]}  Nd8 {[%clk 0:01:19]} 19. b6 {[%clk 0:02:16]}  Nxb6 {[%clk 0:01:10]} 20. Nfxd4 {[%clk 0:02:03]}  exd4 {[%clk 0:01:06]} 21. Bf4 {[%clk 0:02:03]}  Qc5 {[%clk 0:01:00]} 22. Rb5 {[%clk 0:02:03]}  Qxb5 {[%clk 0:00:53]} 23. cxb5 {[%clk 0:02:03]}  Ne6 {[%clk 0:00:52]} 24. Bd2 {[%clk 0:01:50]}  Na4 {[%clk 0:00:40]} 25. Nb4 {[%clk 0:01:33]}  Nc3 {[%clk 0:00:38]} 26. Qb3 {[%clk 0:01:27]}  Bd7 {[%clk 0:00:21]} 27. Nd5 {[%clk 0:00:59]}  Nxd5 {[%clk 0:00:21]} 28. Bxd5 {[%clk 0:01:00]}  Nc5 {[%clk 0:00:08]} 29. Qc4 {[%clk 0:00:55]}  Rac8 {[%clk 0:00:08]} 30. Bb4 {[%clk 0:00:47]}  b6 {[%clk 0:00:08]} 31. h4 {[%clk 0:00:42]}  h5 {[%clk 0:00:04]} 32. Ba3 {[%clk 0:00:39]}  g6 {[%clk 0:00:03]} 33. Rd1 {[%clk 0:00:16]}  Be6 {[%clk 0:00:02]} 34. Bxe6 {[%clk 0:00:14]}  Nxe6 {[%clk 0:00:02]} 35. Qd5 {[%clk 0:00:12]}  Rfd8 {[%clk 0:00:02]} 36. Qf3 {[%clk 0:00:13]}  Nc5 {[%clk 0:00:02]} 37. Bxc5 {[%clk 0:00:11]}  Rxc5 {[%clk 0:00:01]} 38. Qxf6 {[%clk 0:00:11]}  Rdd5 {[%clk 0:00:01]} 39. Re1 {[%clk 0:00:11]}  Rc8 {[%clk 0:00:01]} 40. Re7 {[%clk 0:00:11]} 1-0


[Site "https://www.chess.com"]

[Event "Titled Tuesday Blitz November 01 Late 2022"]
[White "Roman, Rodrigo"]
[Black "Curtis, John"]
[WhiteFideId "3701220"]
[BlackFideId "3200256"]
[WhiteElo "2001"]
[BlackElo "2203"]
[Result "1-0"]
[Round "11"]
[TimeControl "180+1"]
[Date "2022.11.02"]
[WhiteClock "0:01:22"]
[BlackClock "0:00:08"]

1. e4 {[%clk 0:03:00]}  c5 {[%clk 0:02:59]} 2. Nf3 {[%clk 0:02:58]}  d6 {[%clk 0:02:59]} 3. d4 {[%clk 0:02:58]}  cxd4 {[%clk 0:02:58]} 4. Nxd4 {[%clk 0:02:58]}  Nf6 {[%clk 0:02:58]} 5. Nc3 {[%clk 0:02:59]}  a6 {[%clk 0:02:58]} 6. Bg5 {[%clk 0:02:55]}  e6 {[%clk 0:02:58]} 7. f4 {[%clk 0:02:55]}  Nbd7 {[%clk 0:02:56]} 8. Qf3 {[%clk 0:02:55]}  Qc7 {[%clk 0:02:56]} 9. O-O-O {[%clk 0:02:55]}  b6 {[%clk 0:02:55]} 10. Bd3 {[%clk 0:02:49]}  Bb7 {[%clk 0:02:55]} 11. Qh3 {[%clk 0:02:49]}  Nc5 {[%clk 0:02:53]} 12. Rhe1 {[%clk 0:02:46]}  Nxd3+ {[%clk 0:02:40]} 13. Rxd3 {[%clk 0:02:36]}  Be7 {[%clk 0:02:33]} 14. e5 {[%clk 0:02:32]}  dxe5 {[%clk 0:02:27]} 15. fxe5 {[%clk 0:02:33]}  Ng8 {[%clk 0:02:07]} 16. Bxe7 {[%clk 0:02:25]}  Nxe7 {[%clk 0:02:07]} 17. Qg4 {[%clk 0:02:22]}  O-O {[%clk 0:01:58]} 18. h4 {[%clk 0:02:17]}  Nd5 {[%clk 0:01:44]} 19. Rg3 {[%clk 0:02:13]}  g6 {[%clk 0:01:37]} 20. h5 {[%clk 0:02:03]}  Nxc3 {[%clk 0:01:20]} 21. hxg6 {[%clk 0:02:01]}  Nxa2+ {[%clk 0:01:17]} 22. Kb1 {[%clk 0:02:01]}  fxg6 {[%clk 0:00:49]} 23. Qxe6+ {[%clk 0:01:48]}  Qf7 {[%clk 0:00:44]} 24. Qxf7+ {[%clk 0:01:44]}  Rxf7 {[%clk 0:00:44]} 25. Kxa2 {[%clk 0:01:44]}  Rf4 {[%clk 0:00:39]} 26. c3 {[%clk 0:01:44]}  Re8 {[%clk 0:00:36]} 27. e6 {[%clk 0:01:42]}  Re7 {[%clk 0:00:29]} 28. Re5 {[%clk 0:01:42]}  b5 {[%clk 0:00:29]} 29. Rc5 {[%clk 0:01:40]}  Kg7 {[%clk 0:00:24]} 30. Ka3 {[%clk 0:01:35]}  Kf6 {[%clk 0:00:22]} 31. Kb4 {[%clk 0:01:34]}  g5 {[%clk 0:00:20]} 32. Ka5 {[%clk 0:01:34]}  h5 {[%clk 0:00:19]} 33. Rgxg5 {[%clk 0:01:33]}  h4 {[%clk 0:00:15]} 34. Rh5 {[%clk 0:01:33]}  Bxg2 {[%clk 0:00:13]} 35. Kxa6 {[%clk 0:01:26]}  h3 {[%clk 0:00:11]} 36. Rcg5 {[%clk 0:01:25]}  Rxe6+ {[%clk 0:00:09]} 37. Nxe6 {[%clk 0:01:24]}  Kxe6 {[%clk 0:00:09]} 38. Kxb5 {[%clk 0:01:23]}  Bf1+ {[%clk 0:00:05]} 39. Kb6 {[%clk 0:01:20]}  Rf6 {[%clk 0:00:06]} 40. Kc5 {[%clk 0:01:17]}  Kf7 {[%clk 0:00:05]} 41. Rf5 {[%clk 0:01:16]}  Rxf5+ {[%clk 0:00:02]} 42. Rxf5+ {[%clk 0:01:16]}  Kg6 {[%clk 0:00:03]} 43. Rxf1 {[%clk 0:01:17]}  h2 {[%clk 0:00:04]} 44. Rh1 {[%clk 0:01:17]}  Kf5 {[%clk 0:00:03]} 45. b4 {[%clk 0:01:18]}  Kf4 {[%clk 0:00:04]} 46. b5 {[%clk 0:01:19]}  Kg3 {[%clk 0:00:05]} 47. Rxh2 {[%clk 0:01:20]}  Kxh2 {[%clk 0:00:05]} 48. b6 {[%clk 0:01:20]}  Kg2 {[%clk 0:00:05]} 49. b7 {[%clk 0:01:21]}  Kf3 {[%clk 0:00:06]} 50. c4 {[%clk 0:01:22]}  Ke3 {[%clk 0:00:07]} 51. b8=B {[%clk 0:01:22]}  Kd3 {[%clk 0:00:08]} 1-0


[Site "https://www.chess.com"]

[Event "Titled Tuesday Blitz November 01 Late 2022"]
[White "Roque Sola, Gisela"]
[Black "Boidiya, Sidi"]
[WhiteFideId "5120241"]
[BlackFideId "19600100"]
[WhiteElo "1961"]
[BlackElo "2113"]
[Result "1-0"]
[Round "11"]
[TimeControl "180+1"]
[Date "2022.11.02"]
[WhiteClock "0:00:28"]
[BlackClock "0:00:07"]

1. e4 {[%clk 0:03:00]}  c5 {[%clk 0:02:53]} 2. Nf3 {[%clk 0:02:59]}  e6 {[%clk 0:02:52]} 3. d4 {[%clk 0:02:59]}  cxd4 {[%clk 0:02:53]} 4. Nxd4 {[%clk 0:02:59]}  Nf6 {[%clk 0:02:51]} 5. Nc3 {[%clk 0:02:58]}  Bb4 {[%clk 0:02:51]} 6. Bd3 {[%clk 0:02:51]}  Nc6 {[%clk 0:02:51]} 7. Nxc6 {[%clk 0:02:49]}  dxc6 {[%clk 0:02:52]} 8. O-O {[%clk 0:02:47]}  e5 {[%clk 0:02:52]} 9. Kh1 {[%clk 0:02:44]}  Ng4 {[%clk 0:02:50]} 10. f3 {[%clk 0:02:40]}  Nxh2 {[%clk 0:02:46]} 11. g3 {[%clk 0:02:28]}  Nxf1 {[%clk 0:02:43]} 12. Qxf1 {[%clk 0:02:26]}  Qf6 {[%clk 0:02:38]} 13. Be3 {[%clk 0:02:23]}  Be6 {[%clk 0:02:33]} 14. Na4 {[%clk 0:02:14]}  h5 {[%clk 0:02:27]} 15. Nc5 {[%clk 0:02:05]}  Bc8 {[%clk 0:01:58]} 16. Rd1 {[%clk 0:01:56]}  g5 {[%clk 0:01:54]} 17. Bc4 {[%clk 0:01:47]}  b6 {[%clk 0:01:48]} 18. Nd3 {[%clk 0:01:45]}  Bd6 {[%clk 0:01:45]} 19. Kg1 {[%clk 0:01:31]}  Bc7 {[%clk 0:01:44]} 20. Nb4 {[%clk 0:01:30]}  Bd7 {[%clk 0:01:11]} 21. Qd3 {[%clk 0:01:15]}  Rd8 {[%clk 0:01:03]} 22. Qe2 {[%clk 0:01:09]}  a5 {[%clk 0:00:54]} 23. Na6 {[%clk 0:01:05]}  Bd6 {[%clk 0:00:39]} 24. Bxb6 {[%clk 0:01:02]}  Rc8 {[%clk 0:00:36]} 25. Qd3 {[%clk 0:00:57]}  Ke7 {[%clk 0:00:33]} 26. Bc5 {[%clk 0:00:49]}  Bxc5+ {[%clk 0:00:28]} 27. Nxc5 {[%clk 0:00:49]}  Be8 {[%clk 0:00:20]} 28. Qa3 {[%clk 0:00:46]}  Qh6 {[%clk 0:00:09]} 29. Nd7+ {[%clk 0:00:38]}  Kd8 {[%clk 0:00:08]} 30. Nxe5+ {[%clk 0:00:35]}  Kc7 {[%clk 0:00:08]} 31. Qxa5+ {[%clk 0:00:34]}  Kb7 {[%clk 0:00:08]} 32. Ba6+ {[%clk 0:00:30]}  Kb8 {[%clk 0:00:08]} 33. Qb6+ {[%clk 0:00:28]}  Ka8 {[%clk 0:00:07]} 34. Qb7# {[%clk 0:00:28]} 1-0


[Site "https://www.chess.com"]

[Event "Titled Tuesday Blitz November 01 Late 2022"]
[White "Salman, Pavel"]
[Black "Valdes Romero, Leonardo"]
[WhiteFideId "24153753"]
[BlackFideId "6500331"]
[WhiteElo "2187"]
[BlackElo "2494"]
[Result "1-0"]
[Round "11"]
[TimeControl "180+1"]
[Date "2022.11.02"]
[WhiteClock "0:00:37"]
[BlackClock "0:00:13"]

1. d4 {[%clk 0:03:00]}  d6 {[%clk 0:02:59]} 2. c4 {[%clk 0:02:54]}  Nf6 {[%clk 0:02:59]} 3. Nc3 {[%clk 0:02:54]}  Nbd7 {[%clk 0:02:59]} 4. g3 {[%clk 0:02:53]}  e5 {[%clk 0:02:59]} 5. Bg2 {[%clk 0:02:53]}  Be7 {[%clk 0:03:00]} 6. dxe5 {[%clk 0:02:44]}  dxe5 {[%clk 0:02:59]} 7. Nf3 {[%clk 0:02:45]}  O-O {[%clk 0:02:59]} 8. O-O {[%clk 0:02:45]}  c6 {[%clk 0:03:00]} 9. Qc2 {[%clk 0:02:43]}  a5 {[%clk 0:02:58]} 10. Rd1 {[%clk 0:02:42]}  Qc7 {[%clk 0:02:59]} 11. Bg5 {[%clk 0:02:40]}  Re8 {[%clk 0:02:58]} 12. h3 {[%clk 0:02:38]}  Nc5 {[%clk 0:02:55]} 13. Rd2 {[%clk 0:02:26]}  a4 {[%clk 0:02:42]} 14. Rad1 {[%clk 0:02:25]}  a3 {[%clk 0:02:40]} 15. b4 {[%clk 0:02:16]}  Na6 {[%clk 0:02:34]} 16. b5 {[%clk 0:02:10]}  Nc5 {[%clk 0:02:33]} 17. Bxf6 {[%clk 0:01:59]}  Bxf6 {[%clk 0:02:32]} 18. Ne4 {[%clk 0:01:59]}  Nxe4 {[%clk 0:02:12]} 19. Qxe4 {[%clk 0:02:00]}  g6 {[%clk 0:02:13]} 20. g4 {[%clk 0:02:01]}  Be6 {[%clk 0:02:05]} 21. bxc6 {[%clk 0:01:58]}  bxc6 {[%clk 0:02:04]} 22. Ne1 {[%clk 0:01:53]}  Rec8 {[%clk 0:01:52]} 23. Nd3 {[%clk 0:01:45]}  Ra4 {[%clk 0:01:51]} 24. Rc2 {[%clk 0:01:43]}  c5 {[%clk 0:01:15]} 25. Rb1 {[%clk 0:01:35]}  Rd8 {[%clk 0:01:08]} 26. Rb7 {[%clk 0:01:33]}  Qd6 {[%clk 0:01:01]} 27. Rb5 {[%clk 0:01:08]}  Rc8 {[%clk 0:01:00]} 28. Qb7 {[%clk 0:01:04]}  Qd4 {[%clk 0:00:41]} 29. Bd5 {[%clk 0:00:51]}  Re8 {[%clk 0:00:40]} 30. Bxe6 {[%clk 0:00:50]}  Rxe6 {[%clk 0:00:39]} 31. Rxc5 {[%clk 0:00:43]}  e4 {[%clk 0:00:26]} 32. Rc8+ {[%clk 0:00:43]}  Kg7 {[%clk 0:00:26]} 33. Nf4 {[%clk 0:00:42]}  Qd1+ {[%clk 0:00:22]} 34. Kg2 {[%clk 0:00:42]}  Rd6 {[%clk 0:00:17]} 35. Qb3 {[%clk 0:00:38]}  Ra5 {[%clk 0:00:13]} 36. c5 {[%clk 0:00:37]} 1-0


[Site "https://www.chess.com"]

[Event "Titled Tuesday Blitz November 01 Late 2022"]
[White "Sargsyan, Anna M."]
[Black "Lehtosaari, Mauri"]
[WhiteFideId "13308130"]
[BlackFideId "501999"]
[WhiteElo "2284"]
[BlackElo "2504"]
[Result "1/2-1/2"]
[Round "11"]
[TimeControl "180+1"]
[Date "2022.11.02"]
[WhiteClock "0:00:14"]
[BlackClock "0:00:42"]

1. d4 {[%clk 0:02:18]}  d5 {[%clk 0:02:58]} 2. c4 {[%clk 0:02:19]}  c6 {[%clk 0:02:58]} 3. Nf3 {[%clk 0:02:20]}  Nf6 {[%clk 0:02:58]} 4. Nc3 {[%clk 0:02:21]}  dxc4 {[%clk 0:02:58]} 5. a4 {[%clk 0:02:22]}  Bf5 {[%clk 0:02:58]} 6. Ne5 {[%clk 0:02:22]}  Nbd7 {[%clk 0:02:58]} 7. Nxc4 {[%clk 0:02:23]}  Nb6 {[%clk 0:02:55]} 8. Nxb6 {[%clk 0:02:19]}  axb6 {[%clk 0:02:48]} 9. Bg5 {[%clk 0:02:17]}  e6 {[%clk 0:02:44]} 10. e3 {[%clk 0:02:18]}  Be7 {[%clk 0:02:36]} 11. Be2 {[%clk 0:02:16]}  h6 {[%clk 0:02:33]} 12. Bh4 {[%clk 0:02:16]}  Ne4 {[%clk 0:02:31]} 13. Bxe7 {[%clk 0:02:15]}  Qxe7 {[%clk 0:02:31]} 14. O-O {[%clk 0:02:16]}  Qb4 {[%clk 0:02:30]} 15. Bd3 {[%clk 0:02:06]}  Nxc3 {[%clk 0:01:55]} 16. bxc3 {[%clk 0:02:06]}  Qxc3 {[%clk 0:01:53]} 17. Bxf5 {[%clk 0:02:07]}  exf5 {[%clk 0:01:53]} 18. Qb1 {[%clk 0:02:01]}  Qa5 {[%clk 0:01:52]} 19. d5 {[%clk 0:02:00]}  O-O {[%clk 0:01:51]} 20. Rd1 {[%clk 0:01:49]}  g6 {[%clk 0:01:40]} 21. d6 {[%clk 0:01:42]}  Rad8 {[%clk 0:01:36]} 22. Ra2 {[%clk 0:01:41]}  Rd7 {[%clk 0:01:31]} 23. e4 {[%clk 0:01:23]}  fxe4 {[%clk 0:01:27]} 24. Qxe4 {[%clk 0:01:22]}  Rfd8 {[%clk 0:01:28]} 25. Rad2 {[%clk 0:01:21]}  b5 {[%clk 0:01:22]} 26. axb5 {[%clk 0:01:16]}  Qxb5 {[%clk 0:01:22]} 27. h4 {[%clk 0:01:12]}  Qf5 {[%clk 0:01:17]} 28. Qb4 {[%clk 0:01:05]}  Qf6 {[%clk 0:01:15]} 29. g3 {[%clk 0:01:01]}  Kg7 {[%clk 0:01:13]} 30. Qc5 {[%clk 0:00:52]}  Qf5 {[%clk 0:01:11]} 31. Qb6 {[%clk 0:00:43]}  Qe5 {[%clk 0:01:06]} 32. Qb4 {[%clk 0:00:35]}  c5 {[%clk 0:01:05]} 33. Qb6 {[%clk 0:00:29]}  c4 {[%clk 0:01:05]} 34. Qb4 {[%clk 0:00:25]}  c3 {[%clk 0:01:05]} 35. Rd3 {[%clk 0:00:26]}  c2 {[%clk 0:01:03]} 36. Rc1 {[%clk 0:00:26]}  Rxd6 {[%clk 0:01:01]} 37. Rxd6 {[%clk 0:00:26]}  Rxd6 {[%clk 0:01:01]} 38. Rxc2 {[%clk 0:00:22]}  Rd1+ {[%clk 0:00:59]} 39. Kh2 {[%clk 0:00:22]}  Qd5 {[%clk 0:00:58]} 40. Qc3+ {[%clk 0:00:21]}  Kh7 {[%clk 0:00:57]} 41. f3 {[%clk 0:00:21]}  b5 {[%clk 0:00:54]} 42. Rf2 {[%clk 0:00:18]}  Rd3 {[%clk 0:00:51]} 43. Qf6 {[%clk 0:00:17]}  b4 {[%clk 0:00:51]} 44. g4 {[%clk 0:00:17]}  b3 {[%clk 0:00:49]} 45. Kg2 {[%clk 0:00:17]}  Qe6 {[%clk 0:00:46]} 46. Qb2 {[%clk 0:00:16]}  Qd5 {[%clk 0:00:44]} 47. Qf6 {[%clk 0:00:15]}  Rd4 {[%clk 0:00:43]} 48. Kh3 {[%clk 0:00:15]}  Rd3 {[%clk 0:00:42]} 49. Kg2 {[%clk 0:00:14]} 1/2-1/2


[Site "https://www.chess.com"]

[Event "Titled Tuesday Blitz November 01 Late 2022"]
[White "Saucey, Michel"]
[Black "Petrova, Irina"]
[WhiteFideId "601845"]
[BlackFideId "14124122"]
[WhiteElo "2253"]
[BlackElo "2023"]
[Result "0-1"]
[Round "11"]
[TimeControl "180+1"]
[Date "2022.11.02"]
[WhiteClock "0:00:58"]
[BlackClock "0:00:05"]

1. d4 {[%clk 0:03:00]}  d6 {[%clk 0:03:00]} 2. e4 {[%clk 0:03:00]}  Nf6 {[%clk 0:03:00]} 3. Nc3 {[%clk 0:03:00]}  e5 {[%clk 0:03:00]} 4. Nf3 {[%clk 0:03:00]}  Nbd7 {[%clk 0:03:00]} 5. Bc4 {[%clk 0:02:59]}  Be7 {[%clk 0:03:00]} 6. O-O {[%clk 0:02:59]}  c6 {[%clk 0:02:59]} 7. a4 {[%clk 0:02:58]}  h6 {[%clk 0:02:58]} 8. Re1 {[%clk 0:02:57]}  Qc7 {[%clk 0:02:57]} 9. Ba2 {[%clk 0:02:48]}  g5 {[%clk 0:02:49]} 10. Be3 {[%clk 0:02:42]}  Nf8 {[%clk 0:02:49]} 11. Nd2 {[%clk 0:02:38]}  Ng6 {[%clk 0:02:47]} 12. f3 {[%clk 0:02:36]}  Bd7 {[%clk 0:02:35]} 13. Nf1 {[%clk 0:02:35]}  Nf4 {[%clk 0:02:30]} 14. Ng3 {[%clk 0:02:34]}  Kf8 {[%clk 0:02:24]} 15. Qd2 {[%clk 0:02:29]}  Kg7 {[%clk 0:02:20]} 16. Rad1 {[%clk 0:02:28]}  Rag8 {[%clk 0:02:17]} 17. Nf5+ {[%clk 0:02:21]}  Bxf5 {[%clk 0:02:16]} 18. exf5 {[%clk 0:02:21]}  Kf8 {[%clk 0:01:56]} 19. dxe5 {[%clk 0:02:18]}  dxe5 {[%clk 0:01:55]} 20. Ne4 {[%clk 0:02:16]}  Nxe4 {[%clk 0:01:50]} 21. fxe4 {[%clk 0:02:14]}  Kg7 {[%clk 0:01:11]} 22. Qc3 {[%clk 0:02:13]}  Rd8 {[%clk 0:00:56]} 23. Qc4 {[%clk 0:02:12]}  Bf6 {[%clk 0:00:52]} 24. g3 {[%clk 0:02:07]}  Nh3+ {[%clk 0:00:41]} 25. Kg2 {[%clk 0:02:06]}  g4 {[%clk 0:00:42]} 26. b4 {[%clk 0:01:51]}  Ng5 {[%clk 0:00:38]} 27. a5 {[%clk 0:01:38]}  Nf3 {[%clk 0:00:34]} 28. Rf1 {[%clk 0:01:36]}  Rd7 {[%clk 0:00:25]} 29. Bxa7 {[%clk 0:01:29]}  Rf8 {[%clk 0:00:13]} 30. Bb6 {[%clk 0:01:27]}  Qc8 {[%clk 0:00:13]} 31. c3 {[%clk 0:01:21]}  Bd8 {[%clk 0:00:11]} 32. Be3 {[%clk 0:01:20]}  Bf6 {[%clk 0:00:08]} 33. h4 {[%clk 0:01:19]}  h5 {[%clk 0:00:07]} 34. Bc5 {[%clk 0:01:08]}  Rfd8 {[%clk 0:00:06]} 35. Rxd7 {[%clk 0:01:07]}  Rxd7 {[%clk 0:00:07]} 36. Rf2 {[%clk 0:01:07]}  Qd8 {[%clk 0:00:07]} 37. Be3 {[%clk 0:01:03]}  Ne1+ {[%clk 0:00:06]} 38. Kf1 {[%clk 0:01:03]}  Nf3 {[%clk 0:00:07]} 39. Kg2 {[%clk 0:01:02]}  Ne1+ {[%clk 0:00:05]} 40. Kf1 {[%clk 0:01:00]}  Nf3 {[%clk 0:00:06]} 41. Bb3 {[%clk 0:00:59]}  Rd1+ {[%clk 0:00:05]} 42. Kg2 {[%clk 0:00:58]}  Rg1# {[%clk 0:00:05]} 0-1


[Site "https://www.chess.com"]

[Event "Titled Tuesday Blitz November 01 Late 2022"]
[White "Seo, Jung Min"]
[Black "Kamsky, Gata"]
[WhiteFideId "1734687"]
[BlackFideId "2000024"]
[WhiteElo "2455"]
[BlackElo "2666"]
[Result "1/2-1/2"]
[Round "11"]
[TimeControl "180+1"]
[Date "2022.11.01"]
[WhiteClock "0:00:06"]
[BlackClock "0:00:19"]

1. e4 {[%clk 0:03:00]}  e6 {[%clk 0:02:59]} 2. d4 {[%clk 0:03:00]}  d5 {[%clk 0:03:00]} 3. Nd2 {[%clk 0:03:00]}  Nf6 {[%clk 0:02:56]} 4. e5 {[%clk 0:02:59]}  Nfd7 {[%clk 0:02:56]} 5. Bd3 {[%clk 0:02:58]}  c5 {[%clk 0:02:56]} 6. c3 {[%clk 0:02:58]}  Nc6 {[%clk 0:02:56]} 7. Ne2 {[%clk 0:02:59]}  Qb6 {[%clk 0:02:54]} 8. Nf3 {[%clk 0:02:58]}  cxd4 {[%clk 0:02:53]} 9. cxd4 {[%clk 0:02:58]}  Bb4+ {[%clk 0:02:53]} 10. Kf1 {[%clk 0:02:58]}  f6 {[%clk 0:02:46]} 11. exf6 {[%clk 0:02:56]}  Nxf6 {[%clk 0:02:45]} 12. g3 {[%clk 0:02:56]}  O-O {[%clk 0:02:43]} 13. Kg2 {[%clk 0:02:55]}  e5 {[%clk 0:02:37]} 14. dxe5 {[%clk 0:02:54]}  Ng4 {[%clk 0:02:36]} 15. Rf1 {[%clk 0:02:47]}  Rxf3 {[%clk 0:02:32]} 16. Kxf3 {[%clk 0:02:46]}  Nxh2+ {[%clk 0:02:30]} 17. Kg2 {[%clk 0:02:46]}  Nxf1 {[%clk 0:02:30]} 18. Kxf1 {[%clk 0:02:46]}  Nxe5 {[%clk 0:02:29]} 19. Nf4 {[%clk 0:02:43]}  Bg4 {[%clk 0:02:17]} 20. Be2 {[%clk 0:02:42]}  Bxe2+ {[%clk 0:02:12]} 21. Qxe2 {[%clk 0:02:42]}  Qd4 {[%clk 0:02:07]} 22. Ne6 {[%clk 0:02:28]}  Qe4 {[%clk 0:02:02]} 23. Qxe4 {[%clk 0:02:27]}  dxe4 {[%clk 0:01:53]} 24. Ng5 {[%clk 0:02:27]}  Rd8 {[%clk 0:01:47]} 25. Ke2 {[%clk 0:01:42]}  Nc6 {[%clk 0:01:30]} 26. Be3 {[%clk 0:01:36]}  Nd4+ {[%clk 0:01:29]} 27. Bxd4 {[%clk 0:01:34]}  Rxd4 {[%clk 0:01:29]} 28. Rd1 {[%clk 0:01:34]}  Rxd1 {[%clk 0:01:27]} 29. Kxd1 {[%clk 0:01:34]}  e3 {[%clk 0:01:28]} 30. fxe3 {[%clk 0:01:28]}  Be7 {[%clk 0:01:27]} 31. Nf3 {[%clk 0:01:26]}  h5 {[%clk 0:01:26]} 32. Ke2 {[%clk 0:01:24]}  Kf7 {[%clk 0:01:25]} 33. b3 {[%clk 0:01:23]}  Ke6 {[%clk 0:01:24]} 34. e4 {[%clk 0:01:18]}  Bf6 {[%clk 0:01:22]} 35. Kd3 {[%clk 0:01:13]}  g5 {[%clk 0:01:22]} 36. Ng1 {[%clk 0:00:54]}  Be5 {[%clk 0:01:20]} 37. Ne2 {[%clk 0:00:47]}  Kf6 {[%clk 0:01:09]} 38. Ke3 {[%clk 0:00:47]}  g4 {[%clk 0:01:08]} 39. Nf4 {[%clk 0:00:45]}  Kg5 {[%clk 0:01:08]} 40. Ne6+ {[%clk 0:00:45]}  Kh6 {[%clk 0:01:05]} 41. Nf4 {[%clk 0:00:45]}  a6 {[%clk 0:01:04]} 42. a3 {[%clk 0:00:35]}  Bd6 {[%clk 0:00:58]} 43. a4 {[%clk 0:00:35]}  Kg5 {[%clk 0:00:50]} 44. Ne6+ {[%clk 0:00:33]}  Kf6 {[%clk 0:00:50]} 45. Nf4 {[%clk 0:00:33]}  Kg5 {[%clk 0:00:35]} 46. Ne6+ {[%clk 0:00:33]}  Kh6 {[%clk 0:00:33]} 47. Nf4 {[%clk 0:00:24]}  Be5 {[%clk 0:00:33]} 48. Ne2 {[%clk 0:00:12]}  Kg5 {[%clk 0:00:30]} 49. Kf2 {[%clk 0:00:06]}  h4 {[%clk 0:00:28]} 50. gxh4+ {[%clk 0:00:07]}  Kxh4 {[%clk 0:00:28]} 51. Nc1 {[%clk 0:00:06]}  Kh3 {[%clk 0:00:26]} 52. Nd3 {[%clk 0:00:06]}  Bd4+ {[%clk 0:00:26]} 53. Kf1 {[%clk 0:00:05]}  g3 {[%clk 0:00:24]} 54. Nf4+ {[%clk 0:00:05]}  Kh2 {[%clk 0:00:25]} 55. Ng2 {[%clk 0:00:04]}  Kh3 {[%clk 0:00:22]} 56. Nf4+ {[%clk 0:00:04]}  Kg4 {[%clk 0:00:23]} 57. Ne2 {[%clk 0:00:04]}  Be5 {[%clk 0:00:22]} 58. Kg2 {[%clk 0:00:04]}  a5 {[%clk 0:00:21]} 59. Nc1 {[%clk 0:00:02]}  Kf4 {[%clk 0:00:22]} 60. Nd3+ {[%clk 0:00:02]}  Kxe4 {[%clk 0:00:22]} 61. Nc5+ {[%clk 0:00:03]}  Kd5 {[%clk 0:00:18]} 62. Nxb7 {[%clk 0:00:03]}  Bc7 {[%clk 0:00:18]} 63. Nxa5 {[%clk 0:00:04]}  Bxa5 {[%clk 0:00:18]} 64. Kxg3 {[%clk 0:00:04]}  Kc5 {[%clk 0:00:18]} 65. Kg2 {[%clk 0:00:04]}  Kb4 {[%clk 0:00:18]} 66. Kh1 {[%clk 0:00:05]}  Kxb3 {[%clk 0:00:19]} 67. Kg2 {[%clk 0:00:06]}  Kxa4 {[%clk 0:00:19]} 1/2-1/2


[Site "https://www.chess.com"]